fUSD/lending_fUSD_20260605
["ID","MTS","AMOUNT","RATE_DAILY","PERIOD"]
[424134182,1780607461000,-500.0,0.00037807,11]
[424134184,1780607461000,-500.0,0.00037807,11]
[424134185,1780607461000,-500.0,0.00037807,11]
[424134172,1780607461000,-151.0,0.00037805,14]
[424134217,1780607461000,-249.77027565,0.00037808,11]
[424134198,1780607461000,-1342.0,0.00037808,2]
[424134220,1780607461000,-500.0,0.00037808,11]
[424134248,1780607461000,-1547.0,0.00037808,30]
[424134252,1780607461000,-1547.0,0.00037808,30]
[424134255,1780607461000,-1547.0,0.00037808,30]
[424134256,1780607461000,-1547.0,0.00037808,30]
[424134253,1780607461000,-1547.0,0.00037808,30]
[424134258,1780607461000,-1547.0,0.00037808,30]
[424134270,1780607461000,-1687.86170841,0.00037808,30]
[424134259,1780607461000,-1547.0,0.00037808,30]
[424134269,1780607461000,-1547.0,0.00037808,30]
[424134260,1780607461000,-1547.0,0.00037808,30]
[424134261,1780607461000,-500.0,0.00037808,11]
[424134262,1780607461000,-1547.0,0.00037808,30]
[424134263,1780607461000,-1547.0,0.00037808,30]
[424134254,1780607461000,-1547.0,0.00037808,30]
[424134264,1780607461000,-1547.0,0.00037808,30]
[424134268,1780607461000,-1547.0,0.00037808,30]
[424134266,1780607461000,-1547.0,0.00037808,30]
[424134265,1780607461000,-1547.0,0.00037808,30]
[424134272,1780607461000,-280.61209394,0.00037808,30]
[424134271,1780607461000,-500.0,0.00037808,11]
[424134273,1780607461000,-154.11024229,0.00037808,30]
[424134275,1780607461000,-152.0,0.00037808,30]
[424134276,1780607461000,-152.0,0.00037808,30]
[424134274,1780607461000,-500.0,0.00037808,11]
[424134281,1780607461000,-152.0,0.00037808,30]
[424134278,1780607461000,-152.0,0.00037808,30]
[424134280,1780607461000,-152.0,0.00037808,30]
[424134218,1780607461000,-500.0,0.00037808,11]
[424134267,1780607461000,-1547.0,0.00037808,30]
[424134249,1780607461000,-1547.0,0.00037808,30]
[424134277,1780607461000,-152.0,0.00037808,30]
[424134251,1780607461000,-1547.0,0.00037808,30]
[424134250,1780607461000,-1547.0,0.00037808,30]
[424134225,1780607461000,-500.0,0.00037808,11]
[424134228,1780607461000,-500.0,0.00037808,11]
[424134232,1780607461000,-500.0,0.00037808,11]
[424134224,1780607461000,-500.0,0.00037808,11]
[424134229,1780607461000,-500.0,0.00037808,11]
[424134227,1780607461000,-500.0,0.00037808,11]
[424134223,1780607461000,-500.0,0.00037808,11]
[424134226,1780607461000,-500.0,0.00037808,11]
[424134231,1780607461000,-500.0,0.00037808,11]
[424134221,1780607461000,-500.0,0.00037808,11]
[424134230,1780607461000,-500.0,0.00037808,11]
[424134238,1780607461000,-500.0,0.00037808,11]
[424134233,1780607461000,-500.0,0.00037808,11]
[424134222,1780607461000,-500.0,0.00037808,11]
[424134237,1780607461000,-500.0,0.00037808,11]
[424134235,1780607461000,-500.0,0.00037808,11]
[424134247,1780607461000,-1547.0,0.00037808,30]
[424134257,1780607461000,-1547.0,0.00037808,30]
[424134246,1780607461000,-1547.0,0.00037808,30]
[424134245,1780607461000,-1547.0,0.00037808,30]
[424134242,1780607461000,-535.04533452,0.00037808,11]
[424134240,1780607461000,-500.0,0.00037808,11]
[424134236,1780607461000,-500.0,0.00037808,11]
[424134241,1780607461000,-200.0,0.00037808,11]
[424134239,1780607461000,-500.0,0.00037808,11]
[424134244,1780607461000,-519.43,0.00037808,11]
[424134234,1780607461000,-500.0,0.00037808,11]
[424134243,1780607461000,-500.0,0.00037808,11]
[424134279,1780607461000,-152.0,0.00037808,30]
[424134309,1780607462000,-500.0,0.00037808,11]
[424134315,1780607462000,-500.0,0.00037808,11]
[424134310,1780607462000,-500.0,0.00037808,11]
[424134319,1780607462000,-500.0,0.00037808,11]
[424134318,1780607462000,-500.0,0.00037808,11]
[424134311,1780607462000,-500.0,0.00037808,2]
[424134314,1780607462000,-500.0,0.00037808,11]
[424134313,1780607462000,-500.0,0.00037808,2]
[424134312,1780607462000,-500.0,0.00037808,2]
[424134316,1780607462000,-500.0,0.00037808,11]
[424134317,1780607462000,-151.0,0.00037808,30]
[424134327,1780607462000,-500.0,0.00037808,11]
[424134322,1780607462000,-500.0,0.00037808,11]
[424134321,1780607462000,-611.92,0.00037808,11]
[424134329,1780607462000,-760.89,0.00037808,11]
[424134332,1780607462000,-500.0,0.00037808,11]
[424134333,1780607462000,-500.0,0.00037808,11]
[424134323,1780607462000,-858.66,0.00037808,11]
[424134324,1780607462000,-500.0,0.00037808,11]
[424134330,1780607462000,-500.0,0.00037808,11]
[424134301,1780607462000,-500.0,0.00037808,11]
[424134325,1780607462000,-500.0,0.00037808,11]
[424134320,1780607462000,-278.369135,0.00037808,30]
[424134305,1780607462000,-500.0,0.00037808,11]
[424134292,1780607462000,-154.0,0.00037808,30]
[424134302,1780607462000,-621.31,0.00037808,11]
[424134326,1780607462000,-919.67,0.00037808,11]
[424134283,1780607462000,-153.0,0.00037808,30]
[424134282,1780607462000,-302.89798873,0.00037808,30]
[424134284,1780607462000,-153.0,0.00037808,30]
[424134285,1780607462000,-153.0,0.00037808,30]
[424134288,1780607462000,-153.0,0.00037808,30]
[424134287,1780607462000,-153.0,0.00037808,30]
[424134290,1780607462000,-153.0,0.00037808,30]
[424134286,1780607462000,-153.0,0.00037808,30]
[424134289,1780607462000,-153.0,0.00037808,30]
[424134291,1780607462000,-295.74121978,0.00037808,30]
[424134294,1780607462000,-166.0,0.00037808,30]
[424134293,1780607462000,-500.0,0.00037808,11]
[424134296,1780607462000,-500.0,0.00037808,11]
[424134297,1780607462000,-500.0,0.00037808,11]
[424134295,1780607462000,-166.0,0.00037808,30]
[424134306,1780607462000,-500.0,0.00037808,11]
[424134298,1780607462000,-500.0,0.00037808,11]
[424134307,1780607462000,-500.0,0.00037808,11]
[424134308,1780607462000,-933.84,0.00037808,11]
[424134299,1780607462000,-500.0,0.00037808,11]
[424134300,1780607462000,-500.0,0.00037808,11]
[424134303,1780607462000,-527.04,0.00037808,11]
[424134304,1780607462000,-569.06,0.00037808,11]
[424134331,1780607462000,-676.23,0.00037808,11]
[424134338,1780607462000,-500.0,0.00037808,11]
[424134334,1780607462000,-500.0,0.00037808,11]
[424134362,1780607462000,-500.0,0.00037808,11]
[424134364,1780607462000,-500.0,0.00037808,11]
[424134365,1780607462000,-1168.37,0.00037808,2]
[424134366,1780607462000,-500.0,0.00037808,11]
[424134369,1780607462000,-813.06,0.00037808,11]
[424134367,1780607462000,-500.0,0.00037808,11]
[424134371,1780607462000,-500.0,0.00037808,11]
[424134374,1780607462000,-500.0,0.00037808,11]
[424134377,1780607462000,-500.0,0.00037808,11]
[424134370,1780607462000,-500.0,0.00037808,11]
[424134372,1780607462000,-576.13,0.00037808,11]
[424134376,1780607462000,-545.45,0.00037808,11]
[424134375,1780607462000,-500.0,0.00037808,11]
[424134373,1780607462000,-503.93,0.00037808,11]
[424134379,1780607462000,-587.58,0.00037808,11]
[424134378,1780607462000,-716.65,0.00037808,11]
[424134384,1780607462000,-500.0,0.00037808,11]
[424134385,1780607462000,-500.0,0.00037808,11]
[424134381,1780607462000,-500.0,0.00037808,11]
[424134380,1780607462000,-500.0,0.00037808,11]
[424134382,1780607462000,-500.0,0.00037808,11]
[424134383,1780607462000,-500.0,0.00037808,11]
[424134328,1780607462000,-500.0,0.00037808,11]
[424134361,1780607462000,-500.0,0.00037808,11]
[424134360,1780607462000,-500.0,0.00037808,11]
[424134368,1780607462000,-500.0,0.00037808,11]
[424134358,1780607462000,-500.0,0.00037808,11]
[424134335,1780607462000,-500.0,0.00037808,11]
[424134363,1780607462000,-500.0,0.00037808,11]
[424134337,1780607462000,-500.0,0.00037808,11]
[424134342,1780607462000,-500.0,0.00037808,11]
[424134343,1780607462000,-500.0,0.00037808,11]
[424134344,1780607462000,-590.93998084,0.00037808,11]
[424134341,1780607462000,-601.68,0.00037808,11]
[424134339,1780607462000,-500.0,0.00037808,11]
[424134340,1780607462000,-500.0,0.00037808,11]
[424134346,1780607462000,-500.0,0.00037808,11]
[424134345,1780607462000,-160.84627702,0.00037808,11]
[424134350,1780607462000,-151.0,0.00037808,30]
[424134336,1780607462000,-500.0,0.00037808,11]
[424134359,1780607462000,-500.0,0.00037808,11]
[424134351,1780607462000,-500.0,0.00037808,11]
[424134354,1780607462000,-704.67,0.00037808,11]
[424134347,1780607462000,-500.0,0.00037808,11]
[424134348,1780607462000,-650.34,0.00037808,11]
[424134353,1780607462000,-500.0,0.00037808,11]
[424134355,1780607462000,-500.0,0.00037808,11]
[424134349,1780607462000,-500.0,0.00037808,11]
[424134357,1780607462000,-655.5,0.00037808,11]
[424134356,1780607462000,-654.49,0.00037808,11]
[424134352,1780607462000,-500.0,0.00037808,11]
[424134424,1780607463000,-500.0,0.00037808,11]
[424134421,1780607463000,-659.75,0.00037808,11]
[424134420,1780607463000,-500.0,0.00037808,11]
[424134425,1780607463000,-500.0,0.00037808,11]
[424134412,1780607463000,-500.0,0.00037808,11]
[424134415,1780607463000,-2135.96,0.00037808,11]
[424134418,1780607463000,-500.0,0.00037808,11]
[424134416,1780607463000,-731.99,0.00037808,11]
[424134422,1780607463000,-500.0,0.00037808,11]
[424134414,1780607463000,-500.0,0.00037808,11]
[424134417,1780607463000,-500.0,0.00037808,11]
[424134423,1780607463000,-500.0,0.00037808,11]
[424134430,1780607463000,-4753.62,0.00037808,11]
[424134437,1780607463000,-1339.82,0.00037808,11]
[424134427,1780607463000,-500.0,0.00037808,11]
[424134426,1780607463000,-743.9,0.00037808,3]
[424134428,1780607463000,-500.0,0.00037808,11]
[424134429,1780607463000,-500.0,0.00037808,11]
[424134436,1780607463000,-581.26,0.00037808,11]
[424134431,1780607463000,-262.45203239,0.00037808,11]
[424134432,1780607463000,-500.0,0.00037808,11]
[424134435,1780607463000,-500.0,0.00037808,11]
[424134434,1780607463000,-500.0,0.00037808,11]
[424134419,1780607463000,-500.0,0.00037808,11]
[424134411,1780607463000,-500.0,0.00037808,11]
[424134386,1780607463000,-642.11,0.00037808,11]
[424134406,1780607463000,-500.0,0.00037808,2]
[424134433,1780607463000,-500.0,0.00037808,11]
[424134388,1780607463000,-506.64,0.00037808,11]
[424134387,1780607463000,-500.0,0.00037808,11]
[424134389,1780607463000,-500.0,0.00037808,11]
[424134392,1780607463000,-1480.09,0.00037808,2]
[424134400,1780607463000,-500.0,0.00037808,11]
[424134390,1780607463000,-500.0,0.00037808,11]
[424134394,1780607463000,-192.43366057,0.00037808,11]
[424134393,1780607463000,-500.0,0.00037808,11]
[424134391,1780607463000,-500.0,0.00037808,11]
[424134401,1780607463000,-500.0,0.00037808,11]
[424134408,1780607463000,-959.73,0.00037808,11]
[424134398,1780607463000,-620.97,0.00037808,11]
[424134399,1780607463000,-3897.01,0.00037808,11]
[424134397,1780607463000,-835.7,0.00037808,2]
[424134396,1780607463000,-573.72,0.00037808,11]
[424134403,1780607463000,-500.0,0.00037808,11]
[424134409,1780607463000,-500.0,0.00037808,11]
[424134402,1780607463000,-500.0,0.00037808,11]
[424134405,1780607463000,-526.23,0.00037808,11]
[424134404,1780607463000,-500.0,0.00037808,2]
[424134413,1780607463000,-500.0,0.00037808,11]
[424134410,1780607463000,-500.0,0.00037808,11]
[424134407,1780607463000,-622.52,0.00037808,11]
[424134395,1780607463000,-500.0,0.00037808,11]
[424134439,1780607463000,-500.0,0.00037808,11]
[424134473,1780607463000,-500.0,0.00037808,11]
[424134438,1780607463000,-500.0,0.00037808,11]
[424134472,1780607463000,-500.0,0.00037808,11]
[424134466,1780607463000,-4090.61,0.00037808,11]
[424134468,1780607463000,-1430.55,0.00037808,11]
[424134474,1780607463000,-500.0,0.00037808,11]
[424134467,1780607463000,-2807.22,0.00037808,11]
[424134465,1780607463000,-500.0,0.00037808,11]
[424134471,1780607463000,-500.0,0.00037808,11]
[424134475,1780607463000,-500.0,0.00037808,11]
[424134477,1780607463000,-786.81,0.00037808,11]
[424134476,1780607463000,-500.0,0.00037808,11]
[424134480,1780607463000,-500.0,0.00037808,11]
[424134481,1780607463000,-500.0,0.00037808,11]
[424134478,1780607463000,-500.0,0.00037808,11]
[424134482,1780607463000,-500.0,0.00037808,11]
[424134484,1780607463000,-500.0,0.00037808,11]
[424134485,1780607463000,-168.5808819,0.00037808,11]
[424134488,1780607463000,-601.28,0.00037808,11]
[424134483,1780607463000,-500.0,0.00037808,11]
[424134487,1780607463000,-500.0,0.00037808,11]
[424134486,1780607463000,-500.0,0.00037808,11]
[424134490,1780607463000,-1955.75,0.00037808,11]
[424134489,1780607463000,-500.0,0.00037808,11]
[424134491,1780607463000,-500.0,0.00037808,11]
[424134464,1780607463000,-500.0,0.00037808,11]
[424134469,1780607463000,-500.0,0.00037808,11]
[424134479,1780607463000,-500.0,0.00037808,11]
[424134470,1780607463000,-500.0,0.00037808,11]
[424134492,1780607463000,-500.0,0.00037808,11]
[424134440,1780607463000,-500.0,0.00037808,11]
[424134446,1780607463000,-500.0,0.00037808,11]
[424134442,1780607463000,-500.0,0.00037808,11]
[424134443,1780607463000,-500.0,0.00037808,11]
[424134450,1780607463000,-500.0,0.00037808,11]
[424134444,1780607463000,-500.0,0.00037808,11]
[424134447,1780607463000,-2524.42,0.00037808,11]
[424134445,1780607463000,-4153.69,0.00037808,11]
[424134448,1780607463000,-500.0,0.00037808,11]
[424134449,1780607463000,-623.71,0.00037808,11]
[424134452,1780607463000,-812.19,0.00037808,11]
[424134441,1780607463000,-500.0,0.00037808,11]
[424134455,1780607463000,-500.0,0.00037808,11]
[424134461,1780607463000,-500.0,0.00037808,11]
[424134460,1780607463000,-800.05,0.00037808,11]
[424134458,1780607463000,-500.0,0.00037808,11]
[424134451,1780607463000,-500.0,0.00037808,11]
[424134463,1780607463000,-776.69,0.00037808,11]
[424134459,1780607463000,-2618.0,0.00037808,11]
[424134453,1780607463000,-500.0,0.00037808,11]
[424134456,1780607463000,-500.0,0.00037808,11]
[424134457,1780607463000,-3768.72,0.00037808,11]
[424134462,1780607463000,-578.2,0.00037808,11]
[424134454,1780607463000,-500.0,0.00037808,11]
[424134510,1780607464000,-151.0,0.00037808,30]
[424134509,1780607464000,-3642.31,0.00037808,11]
[424134511,1780607464000,-355.56,0.00037808,11]
[424134514,1780607464000,-500.0,0.00037808,11]
[424134512,1780607464000,-500.0,0.00037808,11]
[424134515,1780607464000,-151.0,0.00037808,30]
[424134516,1780607464000,-500.0,0.00037808,11]
[424134517,1780607464000,-2929.97,0.00037808,11]
[424134518,1780607464000,-500.0,0.00037808,11]
[424134503,1780607464000,-639.59,0.00037808,11]
[424134519,1780607464000,-151.0,0.00037808,30]
[424134513,1780607464000,-281.590561,0.00037808,30]
[424134502,1780607464000,-329.63976575,0.00037808,11]
[424134499,1780607464000,-500.0,0.00037808,11]
[424134505,1780607464000,-500.0,0.00037808,11]
[424134506,1780607464000,-500.0,0.00037808,11]
[424134508,1780607464000,-610.07,0.00037808,11]
[424134504,1780607464000,-500.0,0.00037808,11]
[424134520,1780607464000,-500.0,0.00037808,11]
[424134501,1780607464000,-500.0,0.00037808,11]
[424134500,1780607464000,-2658.89,0.00037808,11]
[424134497,1780607464000,-500.0,0.00037808,11]
[424134498,1780607464000,-790.25,0.00037808,11]
[424134495,1780607464000,-500.0,0.00037808,11]
[424134496,1780607464000,-500.0,0.00037808,11]
[424134493,1780607464000,-500.0,0.00037808,11]
[424134507,1780607464000,-500.0,0.00037808,11]
[424134494,1780607464000,-500.0,0.00037808,11]
[424134521,1780607464000,-500.0,0.00037808,11]
[424134523,1780607464000,-500.0,0.00037808,11]
[424134522,1780607464000,-340.96611273,0.00037808,11]
[424134550,1780607464000,-670.74,0.00037808,11]
[424134546,1780607464000,-559.05,0.00037808,11]
[424134547,1780607464000,-500.0,0.00037808,11]
[424134548,1780607464000,-578.71791613,0.00037808,11]
[424134549,1780607464000,-500.0,0.00037808,11]
[424134545,1780607464000,-500.0,0.00037808,11]
[424134543,1780607464000,-500.0,0.00037808,11]
[424134536,1780607464000,-624.99,0.00037808,11]
[424134544,1780607464000,-755.81,0.00037808,11]
[424134537,1780607464000,-566.1,0.00037808,11]
[424134535,1780607464000,-308.147385,0.00037808,30]
[424134534,1780607464000,-500.0,0.00037808,11]
[424134542,1780607464000,-500.0,0.00037808,11]
[424134551,1780607464000,-375.36366188,0.00037808,11]
[424134540,1780607464000,-500.0,0.00037808,11]
[424134539,1780607464000,-550.29,0.00037808,11]
[424134526,1780607464000,-678.09,0.00037808,11]
[424134533,1780607464000,-500.0,0.00037808,11]
[424134527,1780607464000,-2550.57,0.00037808,11]
[424134528,1780607464000,-521.5,0.00037808,11]
[424134525,1780607464000,-500.0,0.00037808,11]
[424134530,1780607464000,-3910.95,0.00037808,11]
[424134541,1780607464000,-500.0,0.00037808,11]
[424134531,1780607464000,-500.0,0.00037808,11]
[424134524,1780607464000,-308.147385,0.00037808,30]
[424134532,1780607464000,-308.147385,0.00037808,30]
[424134529,1780607464000,-308.147385,0.00037808,30]
[424134538,1780607464000,-500.0,0.00037808,11]
[424134581,1780607465000,-500.0,0.00037808,11]
[424134591,1780607465000,-300.0,0.00037808,11]
[424134580,1780607465000,-553.82340774,0.00037808,11]
[424134583,1780607465000,-500.0,0.00037808,11]
[424134584,1780607465000,-500.0,0.00037808,11]
[424134594,1780607465000,-500.0,0.00037808,11]
[424134585,1780607465000,-500.0,0.00037808,11]
[424134595,1780607465000,-3429.27,0.00037808,11]
[424134587,1780607465000,-500.0,0.00037808,11]
[424134592,1780607465000,-500.0,0.00037808,11]
[424134593,1780607465000,-2656.95,0.00037808,11]
[424134586,1780607465000,-685.93,0.00037808,11]
[424134604,1780607465000,-500.0,0.00037808,11]
[424134590,1780607465000,-500.0,0.00037808,11]
[424134588,1780607465000,-500.0,0.00037808,11]
[424134589,1780607465000,-500.0,0.00037808,11]
[424134603,1780607465000,-500.0,0.00037808,11]
[424134600,1780607465000,-500.0,0.00037808,11]
[424134605,1780607465000,-500.0,0.00037808,11]
[424134596,1780607465000,-543.2,0.00037808,11]
[424134599,1780607465000,-500.0,0.00037808,11]
[424134598,1780607465000,-597.61,0.00037808,11]
[424134597,1780607465000,-636.34660571,0.00037808,11]
[424134579,1780607465000,-500.0,0.00037808,11]
[424134601,1780607465000,-500.0,0.00037808,11]
[424134582,1780607465000,-2916.9,0.00037808,11]
[424134563,1780607465000,-500.0,0.00037808,11]
[424134578,1780607465000,-500.0,0.00037808,11]
[424134555,1780607465000,-500.0,0.00037808,11]
[424134554,1780607465000,-500.0,0.00037808,11]
[424134553,1780607465000,-3784.18,0.00037808,11]
[424134552,1780607465000,-500.0,0.00037808,11]
[424134557,1780607465000,-500.0,0.00037808,11]
[424134561,1780607465000,-500.0,0.00037808,11]
[424134556,1780607465000,-500.0,0.00037808,11]
[424134559,1780607465000,-500.0,0.00037808,11]
[424134558,1780607465000,-500.0,0.00037808,11]
[424134560,1780607465000,-500.0,0.00037808,11]
[424134562,1780607465000,-500.0,0.00037808,11]
[424134577,1780607465000,-500.0,0.00037808,11]
[424134564,1780607465000,-500.0,0.00037808,11]
[424134568,1780607465000,-500.0,0.00037808,11]
[424134567,1780607465000,-519.35,0.00037808,11]
[424134569,1780607465000,-500.0,0.00037808,11]
[424134570,1780607465000,-500.0,0.00037808,11]
[424134566,1780607465000,-500.0,0.00037808,11]
[424134572,1780607465000,-500.0,0.00037808,11]
[424134571,1780607465000,-500.0,0.00037808,11]
[424134573,1780607465000,-500.0,0.00037808,11]
[424134576,1780607465000,-500.0,0.00037808,11]
[424134575,1780607465000,-500.0,0.00037808,11]
[424134574,1780607465000,-500.0,0.00037808,11]
[424134565,1780607465000,-537.21,0.00037808,11]
[424134602,1780607465000,-500.0,0.00037808,11]
[424134620,1780607465000,-500.0,0.00037808,11]
[424134616,1780607465000,-790.85,0.00037808,11]
[424134636,1780607465000,-500.0,0.00037808,11]
[424134637,1780607465000,-500.0,0.00037808,11]
[424134639,1780607465000,-813.02,0.00037808,11]
[424134641,1780607465000,-500.0,0.00037808,11]
[424134638,1780607465000,-500.0,0.00037808,11]
[424134640,1780607465000,-528.3,0.00037808,11]
[424134643,1780607465000,-500.0,0.00037808,11]
[424134647,1780607465000,-1000.88,0.00037808,11]
[424134648,1780607465000,-283.95437756,0.00037808,11]
[424134645,1780607465000,-500.0,0.00037808,11]
[424134649,1780607465000,-500.0,0.00037808,11]
[424134635,1780607465000,-500.0,0.00037808,11]
[424134646,1780607465000,-551.55,0.00037808,11]
[424134653,1780607465000,-500.0,0.00037808,11]
[424134652,1780607465000,-500.0,0.00037808,11]
[424134650,1780607465000,-693.12,0.00037808,11]
[424134651,1780607465000,-500.0,0.00037808,11]
[424134655,1780607465000,-500.0,0.00037808,11]
[424134657,1780607465000,-857.23,0.00037808,11]
[424134658,1780607465000,-500.0,0.00037808,11]
[424134659,1780607465000,-500.0,0.00037808,11]
[424134656,1780607465000,-3929.4,0.00037808,11]
[424134660,1780607465000,-500.0,0.00037808,11]
[424134606,1780607465000,-500.0,0.00037808,11]
[424134644,1780607465000,-500.0,0.00037808,11]
[424134634,1780607465000,-500.0,0.00037808,11]
[424134654,1780607465000,-500.0,0.00037808,11]
[424134633,1780607465000,-500.0,0.00037808,11]
[424134642,1780607465000,-500.0,0.00037808,11]
[424134617,1780607465000,-606.24,0.00037808,11]
[424134618,1780607465000,-500.0,0.00037808,11]
[424134607,1780607465000,-500.0,0.00037808,11]
[424134609,1780607465000,-500.0,0.00037808,11]
[424134614,1780607465000,-500.0,0.00037808,11]
[424134608,1780607465000,-187.6038516,0.00037808,30]
[424134613,1780607465000,-500.0,0.00037808,11]
[424134610,1780607465000,-170.06,0.00037808,11]
[424134615,1780607465000,-500.0,0.00037808,11]
[424134612,1780607465000,-3144.39,0.00037808,11]
[424134619,1780607465000,-500.0,0.00037808,11]
[424134611,1780607465000,-500.0,0.00037808,11]
[424134621,1780607465000,-500.0,0.00037808,11]
[424134631,1780607465000,-612.5,0.00037808,11]
[424134632,1780607465000,-151.0,0.00037808,30]
[424134629,1780607465000,-2971.37,0.00037808,11]
[424134627,1780607465000,-500.0,0.00037808,11]
[424134625,1780607465000,-151.0,0.00037808,30]
[424134628,1780607465000,-526.51868641,0.00037808,11]
[424134623,1780607465000,-500.0,0.00037808,11]
[424134626,1780607465000,-500.0,0.00037808,11]
[424134630,1780607465000,-611.11,0.00037808,11]
[424134622,1780607465000,-3678.48,0.00037808,11]
[424134624,1780607465000,-500.0,0.00037808,11]
[424134707,1780607466000,-1030.09,0.00037808,11]
[424134697,1780607466000,-500.0,0.00037808,2]
[424134701,1780607466000,-500.0,0.00037808,11]
[424134700,1780607466000,-12766.74,0.00037808,11]
[424134699,1780607466000,-500.0,0.00037808,11]
[424134698,1780607466000,-500.0,0.00037808,11]
[424134693,1780607466000,-674.66,0.00037808,11]
[424134695,1780607466000,-500.0,0.00037808,11]
[424134694,1780607466000,-8973.49,0.00037808,11]
[424134703,1780607466000,-151.0,0.00037808,30]
[424134702,1780607466000,-500.0,0.00037808,11]
[424134715,1780607466000,-4258.06,0.00037808,11]
[424134696,1780607466000,-500.0,0.00037808,11]
[424134706,1780607466000,-1000.0,0.00037808,11]
[424134722,1780607466000,-227.32153804,0.00037808,11]
[424134704,1780607466000,-500.0,0.00037808,11]
[424134712,1780607466000,-4748.28,0.00037808,11]
[424134710,1780607466000,-7062.86,0.00037808,11]
[424134709,1780607466000,-2214.43,0.00037808,11]
[424134713,1780607466000,-500.0,0.00037808,11]
[424134708,1780607466000,-1659.94,0.00037808,11]
[424134714,1780607466000,-187.729829,0.00037808,30]
[424134711,1780607466000,-187.729829,0.00037808,30]
[424134716,1780607466000,-3279.15,0.00037808,11]
[424134718,1780607466000,-500.0,0.00037808,11]
[424134720,1780607466000,-4051.49,0.00037808,11]
[424134719,1780607466000,-187.729829,0.00037808,30]
[424134691,1780607466000,-500.0,0.00037808,11]
[424134705,1780607466000,-500.0,0.00037808,11]
[424134692,1780607466000,-500.0,0.00037808,11]
[424134665,1780607466000,-500.0,0.00037808,11]
[424134684,1780607466000,-500.0,0.00037808,11]
[424134662,1780607466000,-500.0,0.00037808,11]
[424134664,1780607466000,-500.0,0.00037808,11]
[424134663,1780607466000,-500.0,0.00037808,11]
[424134726,1780607466000,-42026.07,0.00037808,11]
[424134666,1780607466000,-500.0,0.00037808,11]
[424134661,1780607466000,-500.0,0.00037808,11]
[424134668,1780607466000,-500.0,0.00037808,11]
[424134678,1780607466000,-11048.61,0.00037808,11]
[424134670,1780607466000,-500.0,0.00037808,11]
[424134673,1780607466000,-3108.82,0.00037808,11]
[424134671,1780607466000,-534.54,0.00037808,11]
[424134667,1780607466000,-500.0,0.00037808,11]
[424134669,1780607466000,-500.0,0.00037808,11]
[424134685,1780607466000,-3613.85,0.00037808,11]
[424134672,1780607466000,-500.0,0.00037808,11]
[424134676,1780607466000,-500.0,0.00037808,11]
[424134675,1780607466000,-3559.2,0.00037808,11]
[424134674,1780607466000,-500.0,0.00037808,11]
[424134680,1780607466000,-3404.48,0.00037808,11]
[424134690,1780607466000,-500.0,0.00037808,11]